bitfinex/quotes_BTCUSD_20250518
["timestamp","ask_amount","ask_price","bid_price","bid_amount"]
[1747592122215,0.26549032,104270.0,104260.0,0.37392562]
[1747592122216,0.27508016,104270.0,104260.0,0.37392562]
[1747592122421,0.06409085,104270.0,104260.0,0.60411788]
[1747592122603,0.22350057,104270.0,104260.0,0.26335797]
[1747592122847,0.26549022,104270.0,104260.0,0.26335797]
[1747592123261,0.26549032,104270.0,104260.0,0.25376675]
[1747592123460,0.26549032,104270.0,104260.0,0.24417581]
[1747592123872,0.26549032,104270.0,104260.0,0.22499365]
[1747592124080,0.27508034,104270.0,104260.0,0.22499365]
[1747592124428,0.26549032,104270.0,104260.0,0.23458459]
[1747592124625,0.26549032,104270.0,104260.0,0.24417544]
[1747592124816,0.27508016,104270.0,104260.0,0.21540243]
[1747592125014,0.27508016,104270.0,104260.0,0.23458496]
[1747592125218,0.28467018,104270.0,104260.0,0.22315943]
[1747592125418,0.27508016,104270.0,104260.0,0.24234159]
[1747592125620,0.26549032,104270.0,104260.0,0.24234159]
[1747592125853,0.26549032,104270.0,104260.0,0.22315943]
[1747592126174,0.27508016,104270.0,104260.0,0.23275056]
[1747592126409,0.28467055,104270.0,104260.0,0.01214878]
[1747592126519,0.88966209,104270.0,104260.0,0.01214878]
[1747592126718,0.3819805,104270.0,104260.0,0.01214878]
[1747592126920,0.37239057,104270.0,104260.0,0.01214878]
[1747592127139,0.89461301,104270.0,104260.0,0.01214878]
[1747592127348,0.90461301,104270.0,104260.0,0.01214878]
[1747592127777,0.39693142,104270.0,104260.0,0.01214878]
[1747592127987,0.38734121,104270.0,104260.0,0.01214878]
[1747592128196,0.8950228,104270.0,104260.0,0.01114878]
[1747592128407,0.8980228,104270.0,104260.0,0.00914878]
[1747592128622,0.26541934,104260.0,104240.0,0.5729947]
[1747592128845,0.0318,104250.0,104240.0,0.5729947]
[1747592129055,0.0318,104250.0,104240.0,0.5634021]
[1747592129274,0.0318,104250.0,104240.0,0.5729947]
[1747592129487,0.39170175,104260.0,104240.0,0.5729947]
[1747592129700,0.39170175,104260.0,104240.0,0.58358721]
[1747592129914,0.39170175,104260.0,104240.0,0.58358647]
[1747592130122,0.39170175,104260.0,104240.0,0.59273287]
[1747592130342,0.39170175,104260.0,104250.0,0.2110307]
[1747592130343,0.0642,104260.0,104250.0,0.2110307]
[1747592130572,0.71876285,104270.0,104260.0,0.21101065]
[1747592130573,0.03189085,104270.0,104260.0,0.21101065]
[1747592130776,9.085e-05,104270.0,104260.0,0.57019244]
[1747592131882,9.085e-05,104270.0,104260.0,0.59076437]
[1747592132098,0.00309085,104270.0,104260.0,0.59076437]
[1747592132729,9.085e-05,104270.0,104260.0,0.59076437]
[1747592133093,0.00109085,104270.0,104260.0,0.71967377]
[1747592133323,0.00109085,104270.0,104260.0,0.75077377]
[1747592133324,0.00309085,104270.0,104260.0,0.75077377]
[1747592133528,0.00109085,104270.0,104260.0,0.75077377]
[1747592133997,0.00209085,104270.0,104260.0,0.75077377]
[1747592134206,0.00109085,104270.0,104260.0,2.60591777]
[1747592134413,0.00109085,104270.0,104260.0,2.64886307]
[1747592134619,0.00109085,104270.0,104260.0,2.64986307]
[1747592134947,0.00191206,104290.0,104280.0,0.56055891]
[1747592135164,0.00191206,104290.0,104280.0,2.59030431]
[1747592135599,0.00191206,104290.0,104280.0,2.60484516]
[1747592135972,0.00191206,104290.0,104280.0,2.63161591]
[1747592136150,0.00191206,104290.0,104280.0,2.63361591]
[1747592136568,0.00191206,104290.0,104280.0,2.70162148]
[1747592136824,0.00191206,104290.0,104280.0,2.71162148]
[1747592137209,0.00191206,104290.0,104280.0,2.71662148]
[1747592137419,0.00191206,104290.0,104280.0,2.40544748]
[1747592137850,0.00291206,104290.0,104280.0,2.41344748]
[1747592138260,0.00291206,104290.0,104280.0,2.41144748]
[1747592138462,0.002,104310.0,104300.0,0.56051662]
[1747592138668,0.00214209,104310.0,104300.0,0.72322602]
[1747592139072,0.00214209,104310.0,104300.0,0.74143203]
[1747592139217,0.00214209,104310.0,104300.0,0.75587959]
[1747592139423,0.00214209,104310.0,104300.0,0.78023884]
[1747592139815,0.00214209,104310.0,104300.0,0.78123884]
[1747592140036,0.48345428,104330.0,104320.0,0.22047434]
[1747592140260,0.48345428,104330.0,104320.0,0.98598374]
[1747592140473,0.48345428,104330.0,104320.0,1.39990374]
[1747592140680,0.48345428,104330.0,104320.0,1.41724518]
[1747592140886,0.48345428,104330.0,104320.0,1.42639158]
[1747592142211,0.48645428,104330.0,104320.0,1.42639158]
[1747592142413,0.48645428,104330.0,104320.0,1.32864218]
[1747592142879,0.48845428,104330.0,104320.0,1.32864218]
[1747592143081,0.48845428,104330.0,104320.0,1.42595158]
[1747592146003,0.48845428,104330.0,104320.0,1.76595158]
[1747592146205,0.48812932,104330.0,104320.0,1.76595158]
[1747592146401,0.48812932,104330.0,104320.0,1.73719503]
[1747592147168,0.48812932,104330.0,104320.0,1.76595158]
[1747592148121,0.48812932,104330.0,104320.0,2.39236358]
[1747592148324,0.48812932,104330.0,104320.0,2.21819558]
[1747592148724,0.48512932,104330.0,104320.0,2.22958445]
[1747592149173,0.48512932,104330.0,104320.0,2.17954829]
[1747592149356,0.48312932,104330.0,104320.0,2.17954829]
[1747592149568,0.48412932,104330.0,104320.0,2.18254829]
[1747592150478,0.48412932,104330.0,104320.0,2.20290177]
[1747592150683,0.48312932,104330.0,104320.0,2.20290177]
[1747592150998,0.28312932,104330.0,104320.0,2.20290177]
[1747592151198,0.28312932,104330.0,104320.0,2.20490177]
[1747592151996,0.28312932,104330.0,104320.0,2.18454829]
[1747592152201,0.28312932,104330.0,104320.0,2.20490177]
[1747592152401,0.28312932,104330.0,104320.0,2.1591033]
[1747592152846,0.28312932,104330.0,104320.0,1.3501953]
[1747592153056,0.28312932,104330.0,104320.0,1.9857723]
[1747592153266,0.28312932,104330.0,104320.0,1.8553213]
[1747592153466,0.28312932,104330.0,104320.0,1.78010045]
[1747592153677,0.28312932,104330.0,104320.0,1.11458045]
[1747592153889,0.28312932,104330.0,104320.0,1.09983521]
[1747592154093,0.5676828,104330.0,104320.0,0.45679671]
[1747592154268,0.54851287,104330.0,104320.0,0.65810038]
[1747592154507,1.08494825,104330.0,104320.0,0.02234144]
[1747592154658,1.16308919,104330.0,104320.0,0.02234144]
[1747592154877,1.18763004,104330.0,104320.0,0.02234144]
[1747592155173,1.18763004,104330.0,104320.0,0.02034144]
[1747592155356,1.27600297,104330.0,104320.0,0.01734144]
[1747592155560,1.18963004,104330.0,104320.0,0.01734144]
[1747592155991,0.25585455,104300.0,104290.0,0.42514887]
[1747592156146,0.26544163,104300.0,104290.0,0.03070815]
[1747592156352,0.88002053,104300.0,104290.0,0.01153096]
[1747592157020,0.89002053,104300.0,104290.0,0.00014209]
[1747592157664,0.38192602,104300.0,104290.0,0.00014209]
[1747592157866,0.37233894,104300.0,104290.0,0.00014209]
[1747592158075,0.89302053,104300.0,104290.0,0.00014209]
[1747592158286,0.39987979,104300.0,104290.0,0.00014209]
[1747592158501,0.90756138,104300.0,104290.0,0.00014209]
[1747592158741,0.90956138,104300.0,104290.0,0.00014209]
[1747592159152,0.9239509,104300.0,104290.0,0.00014209]
[1747592160626,0.41626931,104300.0,104290.0,0.00014209]
[1747592160849,0.9239509,104300.0,104290.0,0.00014209]
[1747592161279,0.01,104290.0,104280.0,0.0171]
[1747592161484,0.89346116,104290.0,104280.0,0.0171]
[1747592161728,1.23299324,104290.0,104280.0,0.0171]
[1747592162163,0.27309004,104270.0,104260.0,0.002]
[1747592162383,0.37039944,104270.0,104260.0,0.002]
[1747592162621,0.32121912,104270.0,104260.0,0.0115914]
[1747592162845,0.22390972,104270.0,104260.0,0.22260196]
[1747592163284,0.26226999,104270.0,104260.0,0.002]
[1747592163498,0.2556807,104270.0,104260.0,0.002]
[1747592163700,0.89067169,104270.0,104260.0,0.002]
[1747592164158,0.88108066,104270.0,104260.0,0.002]
[1747592164397,0.003,104270.0,104260.0,0.23219244]
[1747592164609,0.24755741,104270.0,104260.0,0.342]
[1747592164816,0.23749947,104270.0,104260.0,0.35159131]
[1747592165039,0.88338103,104270.0,104260.0,0.002]
[1747592165491,0.37569944,104270.0,104260.0,0.002]
[1747592165708,0.34439889,104270.0,104260.0,0.002]
[1747592166133,0.87126098,104270.0,104260.0,0.002]
[1747592166347,0.1334094,104270.0,104260.0,0.002]
[1747592166566,0.004,104270.0,104260.0,0.56260122]
[1747592168389,0.004,104270.0,104260.0,0.69151062]
[1747592168823,0.004,104270.0,104260.0,1.02095062]
[1747592169021,0.004,104270.0,104260.0,1.12778555]
[1747592169226,0.004,104270.0,104260.0,1.05105062]
[1747592170313,0.004,104270.0,104260.0,0.65991062]
[1747592170526,0.004,104270.0,104260.0,0.98935062]
[1747592170732,0.004,104270.0,104260.0,1.02255062]
[1747592170933,0.004,104270.0,104260.0,1.05265062]
[1747592171945,0.003,104270.0,104260.0,0.69311062]
[1747592172177,0.00046792,104280.0,104270.0,0.56058006]
[1747592172799,0.25152628,104280.0,104260.0,0.54245056]
[1747592173010,0.20139956,104270.0,104260.0,0.67144]
[1747592173363,0.0305,104270.0,104260.0,0.90163217]
[1747592173775,0.0305,104270.0,104260.0,0.88245056]
[1747592173986,0.23189937,104270.0,104260.0,0.90163235]
[1747592174200,0.25107914,104270.0,104260.0,0.33144]
[1747592174401,0.88717078,104270.0,104260.0,0.002]
[1747592174611,0.3794891,104270.0,104260.0,0.0115914]
[1747592174784,0.31961912,104270.0,104260.0,0.23219262]
[1747592174989,0.34838891,104270.0,104260.0,0.0115914]
[1747592175171,0.34838891,104270.0,104260.0,0.22260186]
[1747592175172,0.33879861,104270.0,104260.0,0.22260186]
[1747592175370,0.0305,104270.0,104260.0,0.21301083]
[1747592175572,0.0305,104270.0,104260.0,0.23219262]
[1747592176277,0.22230972,104270.0,104260.0,0.0115914]
[1747592176476,0.90278689,104270.0,104260.0,0.002]
[1747592176694,1.27732774,104270.0,104260.0,0.002]
[1747592177096,0.21103052,104250.0,104240.0,0.00299422]
[1747592177319,0.78231211,104250.0,104240.0,0.00313635]
[1747592177688,0.80685296,104250.0,104240.0,0.00313635]
[1747592178771,0.90616236,104250.0,104240.0,0.00313635]
[1747592179508,0.39848077,104250.0,104240.0,0.00313635]
[1747592179747,0.90616236,104250.0,104240.0,0.00313635]
[1747592179950,0.90716236,104250.0,104240.0,0.00313635]
[1747592181942,0.91463624,104250.0,104240.0,0.00313635]
[1747592183165,1.51962723,104250.0,104240.0,0.00313635]
[1747592183367,0.50426405,104250.0,104240.0,0.00313635]
[1747592183579,0.91463624,104250.0,104240.0,0.00313635]
[1747592183779,0.91263624,104250.0,104240.0,0.00313635]
[1747592184195,0.91663624,104250.0,104240.0,0.00313635]
[1747592184837,1.25663624,104250.0,104240.0,0.00313635]
[1747592185010,1.25563624,104250.0,104240.0,0.00313635]
[1747592185373,1.35494564,104250.0,104240.0,0.00313635]
[1747592186863,1.25763624,104250.0,104240.0,0.00313635]
[1747592190075,1.25763624,104250.0,104220.0,0.004]
[1747592190268,1.25763624,104250.0,104190.0,0.02660172]
[1747592190269,0.34,104200.0,104190.0,0.02660172]
[1747592190457,0.03413851,104190.0,104180.0,0.002]
[1747592190683,1.15281502,104170.0,104160.0,0.03197408]
[1747592190859,1.21091502,104170.0,104160.0,0.03197408]
[1747592191037,1.21091502,104170.0,104160.0,0.03244852]
[1747592191239,0.29827399,104150.0,104140.0,0.03991721]
[1747592191461,0.29827399,104150.0,104140.0,0.04000806]
[1747592191462,1.73586657,104150.0,104140.0,0.04000806]
[1747592191631,1.41165085,104150.0,104140.0,0.04000806]
[1747592191829,1.77956255,104150.0,104140.0,0.04000806]
[1747592192128,0.57581455,104130.0,104120.0,0.07724872]
[1747592192348,1.33946201,104130.0,104120.0,0.07739062]
[1747592192550,1.33946201,104130.0,104120.0,0.0021419]
[1747592193175,0.5513143,104110.0,104100.0,0.002]
[1747592193372,0.2533143,104110.0,104100.0,0.00214233]
[1747592193589,1.26512918,104110.0,104100.0,0.00214233]
[1747592193799,1.14821622,104110.0,104100.0,0.00214233]
[1747592193973,1.23552562,104110.0,104100.0,0.00214233]
[1747592194170,1.84269609,104110.0,104100.0,0.00214233]
[1747592194388,1.33283502,104110.0,104100.0,0.00214233]
[1747592194588,0.72566455,104110.0,104100.0,0.00214233]
[1747592194820,1.23552562,104110.0,104100.0,0.00214233]
[1747592195450,0.27869574,104090.0,104080.0,0.002]
[1747592195729,0.33320514,104090.0,104080.0,0.00247424]
[1747592195929,0.32320514,104090.0,104080.0,0.00247424]
[1747592196127,0.35600514,104090.0,104080.0,0.00247424]
[1747592196574,0.85720125,104090.0,104080.0,0.00247424]
[1747592196780,0.34734018,104090.0,104080.0,0.00247424]
[1747592197177,0.33320514,104090.0,104080.0,0.00247424]
[1747592197559,0.32320514,104090.0,104080.0,0.00247424]
[1747592197758,0.84306621,104090.0,104080.0,0.00247424]
[1747592198038,0.33320514,104090.0,104080.0,0.00247424]
[1747592198249,0.83306621,104090.0,104080.0,0.00247424]
[1747592198502,0.29905769,104090.0,104080.0,0.00247424]
[1747592198719,0.31827126,104090.0,104080.0,0.00247424]
[1747592198927,0.0973094,104090.0,104080.0,0.56345697]
[1747592199136,0.21180697,104100.0,104080.0,0.59525697]
[1747592199356,0.31872242,104100.0,104080.0,0.59525716]
[1747592199565,0.00960624,104090.0,104080.0,0.58564972]
[1747592199775,0.21135398,104090.0,104080.0,0.37427424]
[1747592199982,0.308649,104100.0,104080.0,0.38388204]
[1747592200192,0.308649,104100.0,104080.0,0.39348975]
[1747592200397,0.308649,104100.0,104080.0,0.58564905]
[1747592200628,0.00960633,104090.0,104080.0,0.57604134]
[1747592200843,0.22096178,104090.0,104080.0,0.34247424]
[1747592201273,0.22096159,104090.0,104080.0,0.34247424]
[1747592201487,0.32787806,104090.0,104080.0,0.34247424]
[1747592201698,0.31827026,104090.0,104080.0,0.34247424]
[1747592201921,0.31827137,104090.0,104080.0,0.34247424]
[1747592202141,0.81852574,104090.0,104080.0,0.00247424]
[1747592202391,0.30866467,104090.0,104080.0,0.00247424]
[1747592203237,0.28945081,104090.0,104080.0,0.00247424]
[1747592203882,1.19505273,104090.0,104080.0,0.00247424]
[1747592204111,0.4215,104080.0,104060.0,0.0180915]
[1747592204332,0.32917284,104070.0,104060.0,0.01823299]
[1747592204552,0.31870492,104070.0,104060.0,0.01823299]
[1747592204768,0.30870492,104070.0,104060.0,0.01823299]
[1747592205526,0.30870473,104070.0,104060.0,0.01823299]
[1747592205772,0.3087051,104070.0,104060.0,0.01823299]
[1747592205983,0.19217475,104080.0,104060.0,0.261149]
[1747592206194,0.19217834,104070.0,104060.0,0.28353953]
[1747592206405,0.32838311,104080.0,104070.0,0.20178725]
[1747592206406,0.19215987,104080.0,104070.0,0.20178725]
[1747592206614,0.20660129,104100.0,104080.0,0.21137539]
[1747592206825,0.19214141,104090.0,104080.0,0.26526777]
[1747592207029,0.20174765,104090.0,104080.0,0.27487557]
[1747592207461,0.19214141,104090.0,104080.0,0.27487557]
[1747592207738,0.20174783,104090.0,104080.0,0.28448328]
[1747592207942,0.20174783,104090.0,104080.0,0.27487557]
[1747592208152,0.19214141,104090.0,104080.0,0.29409072]
[1747592208357,0.20174774,104090.0,104080.0,0.27487557]
[1747592208567,0.21135425,104090.0,104080.0,0.27487557]
[1747592208999,0.21135425,104090.0,104080.0,0.0635]
[1747592209199,0.22098199,104080.0,104070.0,0.002]
[1747592209411,0.22098199,104080.0,104070.0,0.01160891]
[1747592209632,0.29905741,104090.0,104070.0,0.2525048]
[1747592209846,0.3374843,104090.0,104070.0,0.27172161]
[1747592210103,0.3374842,104090.0,104070.0,0.2621127]
[1747592210320,0.21137447,104080.0,104070.0,0.24289589]
[1747592210531,0.20176703,104080.0,104070.0,0.23328716]
[1747592210733,0.22098172,104080.0,104070.0,0.24289589]
[1747592210955,0.22098172,104080.0,104070.0,0.04310873]
[1747592211201,0.22098172,104080.0,104070.0,0.002]
[1747592211202,1.18974567,104080.0,104070.0,0.002]
[1747592211455,0.86974567,104080.0,104070.0,0.002]
[1747592211912,0.86974567,104080.0,104070.0,0.003]
[1747592211913,0.83854567,104080.0,104070.0,0.003]
[1747592212142,0.83854567,104080.0,104070.0,0.002]
[1747592212385,0.81854567,104080.0,104070.0,0.002]
[1747592212656,0.3096846,104080.0,104070.0,0.002]
[1747592212966,0.19217834,104070.0,104060.0,0.22964919]
[1747592213127,0.19217834,104070.0,104060.0,0.27075866]
[1747592213346,0.20178661,104070.0,104060.0,0.25153963]
[1747592213598,0.21139506,104070.0,104060.0,0.26114937]
[1747592213829,0.21139506,104070.0,104060.0,0.05934283]
[1747592214061,0.20178651,104070.0,104060.0,0.27075902]
[1747592214286,0.21139487,104070.0,104060.0,0.28036858]
[1747592214508,0.20178651,104070.0,104060.0,0.28036839]
[1747592214749,0.19217834,104070.0,104060.0,0.30505874]
[1747592214978,0.19217834,104070.0,104060.0,0.30505837]
[1747592215217,0.32789974,104080.0,104060.0,0.31466691]
[1747592215218,0.30868405,104080.0,104060.0,0.31466691]
[1747592215437,0.32789929,104080.0,104060.0,0.31466701]
[1747592215673,0.29907661,104080.0,104070.0,0.20178725]
[1747592215891,0.19215987,104080.0,104070.0,0.27599589]
[1747592216133,0.20174765,104090.0,104070.0,0.28560342]
[1747592216354,0.21137465,104080.0,104070.0,0.27599607]
[1747592216568,0.21137456,104080.0,104070.0,0.2856048]
[1747592216802,0.21137456,104080.0,104070.0,0.07420891]
[1747592217035,0.22098236,104080.0,104060.0,0.23064845]
[1747592217277,0.23058961,104080.0,104060.0,0.24573079]
[1747592217476,0.21186251,104070.0,104060.0,0.04045348]
[1747592217826,0.22100295,104070.0,104060.0,0.23265028]
[1747592217953,0.21139459,104070.0,104060.0,0.25186912]
[1747592218204,0.20178642,104070.0,104060.0,0.25186912]
[1747592218429,0.19217834,104070.0,104060.0,0.25747831]
[1747592218662,0.19217834,104070.0,104060.0,0.24686856]
[1747592218894,0.20178642,104070.0,104060.0,0.24786856]
[1747592219131,0.20178642,104070.0,104060.0,0.23825928]
[1747592219361,0.20178642,104070.0,104060.0,0.01723399]
[1747592219587,0.21139469,104070.0,104060.0,0.22865019]
[1747592219835,0.21139469,104070.0,104060.0,0.23065019]
[1747592220055,0.19217834,104070.0,104060.0,0.24025956]
[1747592220286,0.22098263,104080.0,104060.0,0.24786884]
[1747592220505,0.0973094,104080.0,104070.0,0.22100434]
[1747592220732,0.23256755,104090.0,104070.0,0.26261261]
[1747592220953,0.19215987,104080.0,104070.0,0.28300434]
[1747592221197,0.31066392,104090.0,104080.0,0.00960799]
[1747592221454,0.002,104090.0,104080.0,0.26259072]
[1747592221695,0.002,104090.0,104080.0,0.30219816]
[1747592221914,0.19414141,104090.0,104080.0,0.29259091]
[1747592222141,0.19414141,104090.0,104080.0,0.6358377]
[1747592222142,0.002,104090.0,104080.0,0.6358377]
[1747592222621,0.21335416,104090.0,104080.0,0.39564]
[1747592222851,0.22496086,104090.0,104080.0,0.34324799]
[1747592223087,0.22496086,104090.0,104080.0,0.33364]
[1747592223307,0.21535508,104090.0,104080.0,0.33364]
[1747592223728,0.22100342,104070.0,104060.0,0.49003299]
[1747592223981,0.20178642,104070.0,104060.0,0.49003299]
[1747592224258,0.22100314,104070.0,104060.0,0.49964273]
[1747592224500,0.23061178,104070.0,104060.0,0.42803299]
[1747592224739,0.23061178,104070.0,104060.0,0.77764283]
[1747592224985,0.22100416,104070.0,104060.0,0.01323299]
[1747592225227,0.22100453,104070.0,104060.0,0.01323299]
[1747592225463,0.22100453,104070.0,104060.0,0.01523299]
[1747592225938,0.21139589,104070.0,104060.0,0.01523299]
[1747592226155,0.30870529,104070.0,104060.0,0.01723299]
[1747592226820,0.29909656,104070.0,104060.0,0.01723299]
[1747592227678,0.3087051,104070.0,104060.0,0.01523299]
[1747592228135,0.3087051,104070.0,104060.0,0.01623299]
[1747592228563,0.3087051,104070.0,104060.0,0.01423299]
[1747592228972,0.3087051,104070.0,104060.0,0.01523299]
[1747592229224,0.19217834,104070.0,104060.0,0.20742979]
[1747592229438,0.21139478,104070.0,104060.0,0.04406222]
[1747592229657,0.23061196,104070.0,104060.0,0.01523299]
[1747592229876,0.3758314,104070.0,104060.0,0.01523299]
[1747592230104,0.29909647,104070.0,104060.0,0.01523299]
[1747592232442,0.29895114,104070.0,104060.0,0.01523299]
[1747592232895,0.30855959,104070.0,104060.0,0.01523299]
[1747592233163,0.31816767,104070.0,104060.0,0.02484283]
[1747592233380,0.22030631,104080.0,104060.0,0.31156812]
[1747592233596,0.19217834,104070.0,104060.0,0.292349]
[1747592233812,0.19217834,104070.0,104060.0,0.626029]
[1747592234025,0.20178661,104070.0,104060.0,0.62602909]
[1747592234233,0.22100379,104070.0,104060.0,0.01423299]
[1747592234461,0.21139552,104070.0,104060.0,0.01423299]
[1747592235557,0.21139543,104070.0,104060.0,0.01423299]
[1747592235784,0.21139496,104070.0,104060.0,0.01523299]
[1747592236003,0.22100369,104070.0,104060.0,0.01523299]
[1747592236235,0.21139496,104070.0,104060.0,0.01523299]
[1747592236461,0.29909408,104080.0,104070.0,0.00960891]
[1747592236685,0.22100369,104070.0,104060.0,0.01523299]
[1747592236931,0.21139552,104070.0,104060.0,0.01523299]
[1747592237112,0.88366599,104070.0,104060.0,0.01523299]
[1747592237359,0.34100492,104070.0,104060.0,0.01523299]
[1747592237566,0.30870492,104070.0,104060.0,0.01323299]
[1747592238630,0.30870492,104070.0,104060.0,0.01423299]
[1747592239078,0.30870492,104070.0,104060.0,0.01523299]
[1747592239613,0.29909647,104070.0,104060.0,0.01523299]
[1747592241562,0.20178679,104070.0,104060.0,0.01523299]
[1747592241790,0.22100369,104070.0,104060.0,0.01523299]
[1747592242007,0.2306126,104070.0,104060.0,0.01523299]
[1747592242268,0.19217834,104070.0,104060.0,0.226649]
[1747592242489,0.21139286,104080.0,104060.0,0.30876765]
[1747592242737,0.21139515,104070.0,104060.0,0.02484283]
[1747592242954,0.22100361,104070.0,104060.0,0.03445257]
[1747592243176,0.22100361,104070.0,104060.0,0.02484283]
[1747592243698,0.21139497,104070.0,104060.0,0.04306204]
[1747592243882,0.20178661,104070.0,104060.0,0.23625875]
[1747592244159,0.22100361,104070.0,104060.0,0.04563299]
[1747592244391,0.21139497,104070.0,104060.0,0.01423299]
[1747592244599,0.22100351,104070.0,104060.0,0.02384273]
[1747592244751,0.21139497,104070.0,104060.0,0.03445238]
[1747592244970,0.21139478,104070.0,104060.0,0.25704918]
[1747592245176,0.21139478,104070.0,104060.0,0.22664928]
[1747592245371,0.22100323,104070.0,104060.0,0.22664928]
[1747592245586,0.20178642,104070.0,104060.0,0.26665893]
[1747592245788,0.21139194,104080.0,104070.0,0.23218725]
[1747592245938,0.20374783,104090.0,104070.0,0.28160379]
[1747592246147,0.22296141,104090.0,104070.0,0.61785214]
[1747592246373,0.21335434,104090.0,104080.0,0.21137557]
[1747592246599,0.20374774,104090.0,104080.0,0.21137557]
[1747592246830,0.20374774,104090.0,104080.0,0.2815831]
[1747592247047,0.003,104090.0,104080.0,0.29119072]
[1747592247275,0.002,104090.0,104080.0,0.29119072]
[1747592247504,0.21137456,104080.0,104070.0,0.89415589]
[1747592247713,0.19215987,104080.0,104070.0,0.9435727]
[1747592247918,0.007,104090.0,104080.0,0.27197539]
[1747592248141,0.008,104090.0,104080.0,0.37889213]
[1747592248347,0.002,104090.0,104080.0,0.71889213]
[1747592248572,0.002,104090.0,104080.0,0.74679852]
[1747592249753,0.002,104090.0,104080.0,1.07251852]
[1747592250290,0.002,104090.0,104080.0,1.04561213]
[1747592250513,0.002,104090.0,104080.0,1.04961213]
[1747592250716,0.002,104090.0,104080.0,0.72389213]
[1747592250890,0.002,104090.0,104080.0,1.37509213]
[1747592251334,0.002,104090.0,104080.0,1.37709213]
[1747592253441,0.002,104090.0,104080.0,1.05145213]
[1747592253634,0.002,104090.0,104080.0,1.37709213]
[1747592253832,0.002,104090.0,104080.0,1.37705213]
[1747592254037,0.19414141,104090.0,104080.0,1.33724479]
[1747592254238,0.20374765,104090.0,104080.0,1.3164525]
[1747592254430,0.002,104090.0,104080.0,1.22875053]
[1747592255157,0.002,104090.0,104080.0,1.28985053]
[1747592255356,0.002,104090.0,104080.0,1.38715993]
[1747592258230,0.002,104090.0,104080.0,1.38707993]
[1747592259744,0.002,104090.0,104080.0,2.63510193]
[1747592260364,0.002,104090.0,104080.0,1.38707993]
[1747592260790,0.002,104090.0,104080.0,1.38507993]
[1747592260996,0.002,104090.0,104080.0,1.38907993]
[1747592261417,0.002,104090.0,104080.0,2.39213493]
[1747592261627,0.002,104090.0,104080.0,1.68177993]
[1747592261842,0.002,104090.0,104080.0,1.86720893]
[1747592262246,0.002,104090.0,104080.0,1.38195993]
[1747592262505,0.002,104090.0,104080.0,1.70650793]
[1747592262714,0.002,104090.0,104080.0,1.71550793]
[1747592263214,0.002,104090.0,104080.0,1.71150793]
[1747592263422,0.002,104090.0,104080.0,1.06151993]
[1747592263642,0.002,104090.0,104080.0,1.38691993]
[1747592263875,0.002,104090.0,104080.0,1.39091993]
[1747592264081,0.002,104090.0,104080.0,1.39087993]
[1747592264298,0.002,104090.0,104080.0,0.5084094]
[1747592264299,0.03081954,104090.0,104080.0,0.5084094]
[1747592264511,0.002,104090.0,104080.0,1.38123213]
[1747592264734,0.002,104090.0,104080.0,1.35023213]
[1747592264944,0.002,104090.0,104080.0,1.32013213]
[1747592266019,0.19414141,104090.0,104080.0,0.64907717]
[1747592266239,0.20374765,104090.0,104080.0,0.90707072]
[1747592266449,0.19414141,104090.0,104080.0,0.57667806]
[1747592266654,0.002,104090.0,104080.0,0.57667806]
[1747592267096,0.002,104090.0,104080.0,0.57267806]
[1747592267947,0.19414141,104090.0,104080.0,0.33248]
[1747592268170,0.23303594,104090.0,104080.0,0.33248]
[1747592268379,0.21335416,104090.0,104080.0,0.33708799]
[1747592268594,0.22296086,104090.0,104080.0,0.34969589]
[1747592268849,0.22296086,104090.0,104080.0,0.34008799]
[1747592269070,0.23256765,104090.0,104080.0,0.33448]
[1747592269513,0.20374765,104090.0,104080.0,0.54585566]
[1747592269727,0.19414141,104090.0,104080.0,0.54585566]
[1747592269940,0.20374765,104090.0,104080.0,0.56507072]
[1747592270156,0.002,104090.0,104080.0,0.56507062]
[1747592271687,0.002,104090.0,104080.0,1.06688002]
[1747592275372,0.002,104090.0,104080.0,1.32742002]
[1747592275584,0.002,104090.0,104080.0,1.32598002]
[1747592275815,0.002,104090.0,104080.0,1.00094002]
[1747592276026,0.002,104090.0,104080.0,1.32594002]
[1747592277526,0.002,104090.0,104080.0,1.35644002]
[1747592278388,0.002,104090.0,104080.0,1.38724002]
[1747592280118,0.002,104090.0,104080.0,1.35644002]
[1747592280322,0.002,104090.0,104080.0,1.32578002]
[1747592281630,0.002,104090.0,104080.0,1.38510709]
[1747592282501,0.002,104090.0,104080.0,1.41770709]
[1747592284297,0.002,104090.0,104080.0,1.83238709]
[1747592286078,0.002,104090.0,104080.0,3.21750094]
[1747592286299,0.002,104090.0,104080.0,3.22750094]
[1747592287636,0.002,104090.0,104080.0,3.23750094]
[1747592287857,0.002,104090.0,104080.0,3.64950094]
[1747592288118,0.002,104130.0,104120.0,0.59359784]
[1747592288322,0.002,104130.0,104120.0,1.78722724]
[1747592289407,0.002,104130.0,104120.0,1.0733383]
[1747592289619,0.20367024,104130.0,104120.0,1.62542909]
[1747592289827,0.002,104130.0,104120.0,1.63503274]
[1747592290053,0.002,104130.0,104120.0,1.62542909]
[1747592290283,0.002,104130.0,104120.0,1.6253489]
[1747592290937,0.002,104130.0,104120.0,1.7226583]
[1747592291592,0.004,104130.0,104120.0,1.7226583]
[1747592292053,0.004,104130.0,104120.0,1.73113222]
[1747592292738,0.004,104130.0,104120.0,1.76383222]
[1747592293679,0.004,104130.0,104120.0,1.43951222]
[1747592293890,0.004,104130.0,104120.0,1.73093222]
[1747592295907,0.004,104130.0,104120.0,1.76163222]
[1747592296358,0.004,104130.0,104120.0,1.79403222]
[1747592297536,0.002,104130.0,104120.0,1.79403222]
[1747592297743,0.002,104130.0,104120.0,1.79603222]
[1747592297954,0.002,104130.0,104120.0,1.45603222]
[1747592298179,0.002,104130.0,104120.0,1.42363222]
[1747592299056,0.002,104130.0,104120.0,1.42563222]
[1747592299272,0.002,104130.0,104120.0,1.39493222]
[1747592299945,0.002,104130.0,104120.0,1.42703222]
[1747592301164,0.002,104130.0,104120.0,1.07081222]
[1747592301382,0.002,104130.0,104120.0,1.41081222]
[1747592301596,0.002,104130.0,104120.0,1.4023383]
[1747592301823,0.002,104130.0,104120.0,0.84144046]
[1747592301824,0.22287634,104130.0,104120.0,0.84144046]
[1747592302053,0.23517024,104130.0,104120.0,1.27902543]
[1747592302243,0.23517024,104130.0,104120.0,1.28862955]
[1747592302731,0.24477297,104130.0,104120.0,0.63042562]
[1747592302945,0.26397917,104130.0,104120.0,0.74405106]
[1747592303176,0.28667588,104130.0,104120.0,0.74405106]
[1747592303400,0.28667588,104130.0,104120.0,0.9745532]
[1747592303401,0.002,104130.0,104120.0,0.9745532]
[1747592303631,0.24477334,104130.0,104120.0,0.74405106]